bitfinex-derivatives/quotes_SOLF0:USTF0_20250630
["timestamp","ask_amount","ask_price","bid_price","bid_amount"]
[1751293744605,9.15145549,150.97,150.87,43.64292226]
[1751293744807,6.6242,150.93,150.89,3.59382226]
[1751293745101,6.6242,150.93,150.87,43.64292226]
[1751293745801,3.59382226,150.95,150.87,43.64292226]
[1751293746003,4.4698,150.97,150.87,43.64292226]
[1751293746201,3.59382226,150.96,150.87,43.64292226]
[1751293746399,6.6233,150.95,150.87,43.64292226]
[1751293746603,6.6233,150.95,150.91,6.6245]
[1751293746905,6.6233,150.95,150.92,37.76]
[1751293747203,6.6235,150.94,150.92,37.76]
[1751293748898,6.6232,150.95,150.92,44.3842]
[1751293749500,6.6228,150.96,150.93,6.6239]
[1751293749900,8.27547775,151.0,150.92,37.76]
[1751293750205,3.59382226,150.98,150.93,4.5372]
[1751293750406,8.27547775,150.98,150.93,4.5372]
[1751293750602,3.59382226,150.98,150.93,2.3324]
[1751293750809,3.59382226,150.96,150.91,37.76]
[1751293751104,4.4874,151.01,150.9,37.76]
[1751293751105,6.6247,150.92,150.9,37.76]
[1751293752706,6.6247,150.92,150.89,6.6256]
[1751293753107,11.34844166,150.93,150.9,44.3852]
[1751293753308,4.72424166,150.93,150.91,37.76]
[1751293753509,6.6237,150.94,150.92,37.76]
[1751293753698,4.72424166,150.93,150.92,37.76]
[1751293753902,3.59382226,150.94,150.92,37.76]
[1751293754102,11.34814166,150.93,150.92,37.76]
[1751293756113,4.72424166,150.93,150.89,37.76]
[1751293756308,8.31806392,150.92,150.89,37.76]
[1751293756508,11.34944166,150.91,150.89,37.76]
[1751293756807,4.72424166,150.9,150.89,37.76]
[1751293758311,4.72424166,150.9,150.89,44.3856]
[1751293760112,10.21742226,150.94,150.91,6.6247]
[1751293761005,6.624,150.93,150.9,6.6251]
[1751293761202,3.59382226,150.94,150.89,37.76]
[1751293761614,10.21752226,150.94,150.91,6.6245]
[1751293761814,3.59382226,150.94,150.89,37.76]
[1751293762112,10.21742226,150.94,150.91,6.6246]
[1751293763506,10.21742226,150.94,150.91,43.3646]
[1751293763707,10.21742226,150.94,150.91,6.6246]
[1751293763908,10.21742226,150.94,150.91,43.3646]
[1751293764810,6.6233,150.95,150.92,43.3639]
[1751293765007,6.6233,150.95,150.92,36.74]
[1751293765712,6.6228,150.96,150.93,6.6237]
[1751293766515,6.6231,150.95,150.93,6.6237]
[1751293766719,7.82499966,150.99,150.92,36.74]
[1751293766919,3.59382226,150.99,150.92,36.74]
[1751293767111,6.6223,150.97,150.94,6.6234]
[1751293767711,3.59382226,151.0,150.92,36.74]
[1751293767918,3.59382226,151.0,150.93,2.2216]
[1751293768118,10.21482226,151.0,150.97,6.6219]
[1751293768819,3.59382226,151.0,150.96,43.3424]
[1751293769014,3.59382226,151.0,150.96,36.72]
[1751293769214,2.3572,151.02,150.96,36.72]
[1751293769414,3.59382226,151.02,150.96,36.72]
[1751293769616,7.82499966,151.04,150.96,36.72]
[1751293769820,7.82499966,151.04,150.97,3.59382226]
[1751293770211,6.6197,151.03,151.0,6.6205]
[1751293770413,7.82499966,151.04,151.0,36.72]
[1751293771510,6.6202,151.02,151.0,36.72]
[1751293771919,6.6204,151.01,151.0,36.72]
[1751293772116,11.29292814,151.01,151.0,36.72]
[1751293772724,4.67252814,151.01,151.0,43.3408]
[1751293773022,4.67252814,151.01,151.0,36.72]
[1751293773517,4.67252814,151.01,151.0,43.3408]
[1751293773922,4.2311774,151.04,151.0,36.72]
[1751293774118,7.82499966,151.08,151.0,36.72]
[1751293774318,4.2311774,151.07,151.0,36.72]
[1751293774513,6.6189,151.05,151.02,6.6197]
[1751293774717,3.59382226,151.08,151.02,6.6197]
[1751293774718,4.2311774,151.07,151.02,6.6197]
[1751293775012,6.6196,151.03,151.02,36.72]
[1751293775418,6.6196,151.03,150.97,3.59382226]
[1751293775419,3.59382226,151.06,151.01,36.72]
[1751293775713,3.59382226,151.04,151.0,36.72]
[1751293776117,6.6204,151.01,151.0,36.72]
[1751293776515,6.6202,151.02,151.0,43.3408]
[1751293776717,3.59382226,151.04,151.0,43.3408]
[1751293776917,3.59382226,151.06,151.0,43.3408]
[1751293777223,6.6197,151.03,151.0,43.3408]
[1751293777723,6.6197,151.03,151.01,6.6203]
[1751293778525,4.2311774,151.05,151.0,43.3406]
[1751293778721,4.2311774,151.04,151.0,43.3406]
[1751293778913,6.6197,151.03,151.0,43.3406]
[1751293779116,4.2311774,151.04,151.0,36.72]
[1751293779321,4.2311774,151.03,151.0,36.72]
[1751293779616,6.6204,151.02,151.0,36.72]
[1751293779816,4.2311774,151.03,151.0,36.72]
[1751293780415,3.59382226,151.04,151.0,36.72]
[1751293780416,10.21322226,151.04,151.0,36.72]
[1751293780626,10.21322226,151.04,151.0,43.3407]
[1751293781622,14.79833639,151.04,151.0,43.3407]
[1751293781817,10.21322226,151.04,151.0,43.3407]
[1751293782023,3.59382226,151.04,151.0,36.72]
[1751293782630,6.6198,151.03,151.0,6.6206]
[1751293782827,3.59382226,151.04,150.99,36.72]
[1751293783025,10.21322226,151.04,151.01,6.6202]
[1751293783230,3.59382226,151.04,150.99,36.72]
[1751293783732,10.21292226,151.04,151.02,6.6199]
[1751293786233,3.59382226,151.04,151.02,6.6199]
[1751293786434,178.71021158,151.09,150.99,36.72]
[1751293786734,3.59382226,151.06,151.0,2.3501]
[1751293787127,6.6187,151.05,151.03,6.6193]
[1751293787328,6.6187,151.05,151.0,2.3501]
[1751293788530,6.6187,151.05,151.01,36.34]
[1751293789128,6.6187,151.05,151.0,2.3501]
[1751293789332,6.6187,151.05,151.01,36.34]
[1751293789628,6.6187,151.05,151.02,6.6199]
[1751293789832,6.6187,151.05,151.01,36.34]
[1751293790335,6.6187,151.05,151.03,6.6195]
[1751293792634,10.21212226,151.06,151.03,6.6195]
[1751293792831,3.59382226,151.06,151.02,6.6198]
[1751293793036,3.59382226,151.06,151.01,36.34]
[1751293793231,3.59382226,151.04,151.01,36.34]
[1751293793626,6.6195,151.03,151.0,6.6206]
[1751293794431,6.62,151.02,151.0,6.6206]
[1751293795737,6.6197,151.03,151.0,6.6206]
[1751293796138,3.59382226,151.04,151.0,6.6206]
[1751293796438,6.6201,151.02,151.0,6.6206]
[1751293799742,6.6197,151.03,151.01,6.6203]
[1751293800344,3.59382226,151.04,150.99,36.34]
[1751293800840,3.59382226,151.06,150.99,36.34]
[1751293801238,12.57978496,151.08,151.05,6.6185]
[1751293801433,8.03642226,151.1,151.05,6.6185]
[1751293801643,6.618,151.07,151.03,36.34]
[1751293801834,3.59382226,151.1,151.03,36.34]
[1751293802034,6.6171,151.09,151.03,36.34]
[1751293802438,6.6171,151.09,151.06,6.618]
[1751293802835,6.6171,151.09,151.03,39.93382226]
[1751293803439,6.6171,151.09,151.06,6.618]
[1751293803842,3.59382226,151.1,151.03,36.34]
[1751293804334,6.6174,151.08,151.05,6.6186]
[1751293804533,3.59382226,151.1,151.05,6.6186]
[1751293804736,3.59382226,151.1,151.04,6.619]
[1751293804931,3.59382226,151.08,151.03,36.34]
[1751293805633,3.59382226,151.08,151.04,6.6188]
[1751293806034,6.6181,151.07,151.04,42.9588]
[1751293806436,3.59382226,151.08,151.04,42.9588]
[1751293806643,8.08642069,151.11,151.04,36.34]
[1751293806948,8.08642069,151.11,151.04,39.93382226]
[1751293807148,6.6171,151.09,151.07,6.6176]
[1751293807347,8.08642069,151.11,151.04,36.34]
[1751293807551,3.59382226,151.11,151.04,36.34]
[1751293807742,6.6177,151.08,151.05,6.6184]
[1751293807943,6.6177,151.08,151.04,36.34]
[1751293808547,6.6177,151.08,151.05,6.6183]
[1751293808958,4.49259843,151.1,151.04,36.34]
[1751293809152,4.49259843,151.09,151.05,6.6185]
[1751293809450,4.49259843,151.1,151.05,6.6185]
[1751293809646,3.59382226,151.07,151.03,6.6193]
[1751293809854,3.59382226,151.07,151.04,36.34]
[1751293810044,6.6182,151.06,151.03,36.34]
[1751293810246,3.59382226,151.07,151.04,6.6188]
[1751293810440,6.6181,151.07,151.03,36.34]
[1751293810652,11.11069843,151.07,151.04,6.619]
[1751293810952,4.49259843,151.08,151.01,3.59382226]
[1751293811247,6.6182,151.06,151.02,36.34]
[1751293811445,4.49259843,151.06,151.03,6.6192]
[1751293811646,6.6185,151.06,151.03,42.9592]
[1751293811844,8.17649438,151.07,151.03,36.34]
[1751293812045,4.58267212,151.06,151.03,36.34]
[1751293812246,11.20157212,151.05,151.03,36.34]
[1751293812543,3.59382226,151.07,151.03,36.34]
[1751293812544,4.58267212,151.06,151.03,36.34]
[1751293812746,4.58267212,151.05,151.03,36.34]
[1751293812953,3.59382226,151.07,151.03,36.34]
[1751293812954,4.58267212,151.06,151.03,36.34]
[1751293813345,9.07603639,151.08,151.03,36.34]
[1751293813546,6.6185,151.06,151.03,36.34]
[1751293813752,11.20117212,151.06,151.03,36.34]
[1751293813952,6.6185,151.06,151.03,36.34]
[1751293814146,4.49336427,151.07,151.03,36.34]
[1751293814350,4.57571621,151.06,151.03,36.34]
[1751293814550,4.57571621,151.07,151.03,36.34]
[1751293814750,4.49336427,151.08,151.03,36.34]
[1751293814751,4.57571621,151.06,151.04,6.6188]
[1751293814950,4.57571621,151.07,151.04,6.6188]
[1751293815250,4.57571621,151.06,151.04,6.6188]
[1751293815450,4.57571621,151.07,151.04,6.6188]
[1751293815649,11.19391621,151.06,151.04,6.6188]
[1751293815852,6.6182,151.06,151.04,6.6188]
[1751293816156,11.19597934,151.05,151.03,36.34]
[1751293816356,6.6189,151.05,151.03,36.34]
[1751293816649,4.5769656,151.05,151.0,5.80942226]
[1751293816846,4.5769656,151.04,151.0,36.34]
[1751293817046,4.5769656,151.03,151.0,36.34]
[1751293817244,6.6202,151.02,151.0,36.34]
[1751293817450,11.1971656,151.02,151.0,36.34]
[1751293817645,6.6204,151.01,151.0,36.34]
[1751293818853,6.6208,151.0,150.99,36.24]
[1751293819058,4.5769656,151.01,150.99,36.24]
[1751293819256,6.6202,151.02,150.99,42.8611]
[1751293819456,4.5769656,151.01,150.99,42.8611]
[1751293819756,4.5769656,151.0,150.99,42.8611]
[1751293819956,11.1974656,151.01,150.99,36.24]
[1751293820158,4.5769656,151.0,150.99,36.24]
[1751293820355,4.5769656,151.0,150.98,42.8615]
[1751293820563,11.1978656,151.0,150.98,42.8615]
[1751293820859,6.6209,151.0,150.98,6.6215]
[1751293821046,6.6213,150.99,150.97,42.862]
[1751293821659,6.6213,150.99,150.97,36.24]
[1751293821956,6.6216,150.99,150.97,36.24]
[1751293822149,4.5769656,150.99,150.97,36.24]
[1751293822355,3.59382226,150.99,150.95,36.24]
[1751293822657,10.21532226,150.99,150.95,36.24]
[1751293822854,10.21532226,150.99,150.96,6.6223]
[1751293823158,3.59382226,150.99,150.96,6.6223]
[1751293823555,6.621,151.0,150.97,6.622]
[1751293823856,11.1979656,151.0,150.97,6.622]
[1751293824157,6.6209,151.0,150.97,6.622]
[1751293824358,3.59382226,151.01,150.96,6.6224]
[1751293824556,4.5769656,151.0,150.95,36.24]
[1751293824755,6.622,150.98,150.95,36.24]
[1751293824958,6.622,150.98,150.95,42.8629]
[1751293825362,4.5769656,151.01,150.97,6.6219]
[1751293825859,6.6212,151.0,150.97,6.6219]
[1751293826060,8.17078786,151.0,150.95,36.24]
[1751293826362,10.21572226,150.98,150.95,36.24]
[1751293826660,10.21572226,150.98,150.96,6.6223]
[1751293826862,10.21572226,150.98,150.95,36.24]
[1751293827062,10.21572226,150.98,150.95,6.6228]
[1751293827563,3.59382226,150.98,150.95,6.6228]
[1751293827953,3.59382226,150.98,150.95,42.8628]
[1751293828162,8.17078786,151.0,150.95,36.24]
[1751293828366,3.59382226,151.0,150.95,36.24]
[1751293828661,6.6205,151.01,150.95,39.83382226]
[1751293828861,4.5769656,151.02,150.95,39.83382226]
[1751293829665,6.6211,151.0,150.95,39.83382226]
[1751293830058,3.59382226,151.01,150.95,39.83382226]
[1751293830364,3.59382226,151.01,150.94,4.5047]
[1751293830566,3.59382226,151.01,150.95,36.24]
[1751293830763,8.17078786,151.01,150.95,36.24]
[1751293830955,6.6212,151.0,150.97,6.6218]
[1751293831154,8.17078786,151.01,150.95,36.24]
[1751293831365,3.59382226,151.01,150.95,36.24]
[1751293831954,6.6213,150.99,150.97,6.6219]
[1751293833168,6.621,151.0,150.98,6.6216]
[1751293833366,3.59382226,151.01,150.95,36.24]
[1751293833666,3.59382226,151.01,150.96,6.6224]
[1751293834662,6.6221,150.98,150.95,42.8628]
[1751293834967,3.59382226,150.99,150.95,42.8628]
[1751293835568,3.59382226,150.99,150.95,6.6228]
[1751293837160,6.6221,150.98,150.94,4.5047]
[1751293837360,6.6221,150.98,150.94,36.26]
[1751293837868,6.6221,150.98,150.95,6.6227]
[1751293838365,6.6222,150.97,150.95,6.6227]
[1751293838572,3.59382226,150.99,150.94,42.8833]
[1751293839378,3.59382226,150.97,150.94,36.26]
[1751293839873,6.6229,150.96,150.94,36.26]
[1751293840466,6.6229,150.96,150.93,6.6237]
[1751293841071,6.6231,150.95,150.93,6.6237]
[1751293841672,6.6235,150.94,150.92,36.26]
[1751293842072,6.6235,150.94,150.9,4.4779]
[1751293842470,6.6235,150.94,150.9,40.7379]
[1751293842885,6.6235,150.94,150.91,6.6244]
[1751293843076,6.6235,150.94,150.9,4.4779]
[1751293843382,6.6235,150.94,150.9,40.7379]
[1751293843685,6.6232,150.95,150.9,40.7379]
[1751293844487,10.21762226,150.94,150.91,6.6246]
[1751293844685,3.59382226,150.94,150.9,36.26]
[1751293844886,6.6236,150.94,150.9,36.26]
[1751293845686,6.6236,150.94,150.91,6.6245]
[1751293845878,6.6232,150.95,150.9,36.26]
[1751293846073,3.59382226,150.99,150.9,39.85382226]
[1751293846286,3.59382226,150.99,150.91,4.6159]
[1751293847088,6.6224,150.97,150.91,4.6159]
[1751293847585,6.6224,150.97,150.94,6.6232]
[1751293848486,6.6226,150.96,150.94,6.6232]
[1751293848886,6.6226,150.96,150.93,6.6237]
[1751293849078,3.59382226,150.97,150.93,6.6237]
[1751293849278,3.59382226,150.97,150.91,4.6159]
[1751293849483,3.59382226,150.97,150.92,6.6241]
[1751293849688,6.6232,150.95,150.92,6.6241]
[1751293850389,6.6232,150.95,150.91,4.6159]
[1751293850689,6.6228,150.96,150.91,4.6159]
[1751293851089,3.59382226,150.99,150.91,4.6159]
[1751293851986,6.6222,150.97,150.91,4.6159]
[1751293852580,6.6222,150.97,150.95,6.6228]
[1751293852981,6.6219,150.98,150.95,6.6228]
[1751293853185,3.59382226,150.99,150.95,6.6228]
[1751293853384,6.622,150.98,150.95,6.6228]
[1751293853985,6.6222,150.97,150.95,6.6228]
[1751293854691,4.30853607,151.0,150.87,8.41124691]
[1751293854692,3.59382226,150.96,150.88,6.10054691]
[1751293854891,4.30853607,151.0,150.88,42.9429]
[1751293854892,3.59382226,150.94,150.88,42.9429]
[1751293855191,6.624,150.93,150.91,6.6245]
[1751293856187,3.59382226,150.92,150.88,42.9429]
[1751293856381,3.59382226,150.9,150.85,6.10054691]
[1751293856585,6.6259,150.89,150.86,6.6267]
[1751293857187,6.6259,150.89,150.87,6.6263]
[1751293857492,6.6259,150.89,150.85,36.14]
[1751293857893,6.6259,150.89,150.86,6.6269]
[1751293858191,6.6261,150.88,150.86,6.6269]
[1751293858689,3.59382226,150.9,150.85,36.14]
[1751293859087,6.6259,150.89,150.87,6.6264]
[1751293859288,3.59382226,150.9,150.85,36.14]
[1751293859684,6.6259,150.89,150.86,6.6267]
[1751293859989,6.6259,150.89,150.85,36.14]
[1751293860191,4.5826,150.95,150.86,3.59382226]
[1751293860192,3.59382226,150.94,150.86,3.59382226]
[1751293860590,3.59382226,150.92,150.86,3.59382226]
[1751293860890,3.59382226,150.92,150.86,36.14]
[1751293861491,3.59382226,150.94,150.87,3.59382226]
[1751293862090,3.59382226,150.94,150.92,6.624]
[1751293862694,10.21732226,150.94,150.91,6.6245]
[1751293863291,10.21732226,150.94,150.92,6.6243]
[1751293864397,10.21732226,150.94,150.91,6.6245]
[1751293864598,6.624,150.93,150.91,6.6245]
[1751293865894,6.6244,150.92,150.9,42.765]
[1751293866394,6.624,150.93,150.9,42.765]
[1751293866599,6.624,150.93,150.91,6.6247]
[1751293866997,6.624,150.93,150.9,36.14]
[1751293867300,3.59382226,150.94,150.9,36.14]
[1751293867598,6.6245,150.92,150.9,36.14]
[1751293867797,3.59382226,150.94,150.89,6.6254]
[1751293868697,6.6246,150.92,150.89,6.6254]
[1751293869097,3.59382226,150.94,150.87,6.6263]
[1751293869292,6.6252,150.9,150.87,42.7663]
[1751293869602,6.6252,150.9,150.87,36.14]
[1751293869796,6.6252,150.9,150.88,6.6259]
[1751293870800,6.625,150.91,150.88,6.6259]
[1751293871002,3.59382226,150.94,150.86,39.73382226]
[1751293871597,6.6245,150.92,150.89,6.6254]
[1751293871896,6.6245,150.92,150.86,39.73382226]
[1751293872693,6.6245,150.92,150.86,36.14]
[1751293872891,6.6245,150.92,150.86,39.73382226]
[1751293873600,3.59382226,150.94,150.86,39.73382226]
[1751293873801,3.59382226,150.92,150.89,6.6254]
[1751293874200,3.59382226,150.92,150.86,36.14]
[1751293874405,3.59382226,150.88,150.84,8.26724691]
[1751293874598,3.59382226,150.88,150.84,2.1667]
[1751293874795,3.59382226,150.9,150.86,6.6267]
[1751293875001,4.6774,150.93,150.84,2.1667]
[1751293875002,8.98526007,150.93,150.84,2.1667]
[1751293875199,3.59382226,150.9,150.84,2.1667]
[1751293875401,6.6259,150.89,150.86,6.6266]
[1751293875702,6.6259,150.89,150.84,2.1667]
[1751293876204,6.6259,150.89,150.87,6.6262]
[1751293876897,3.59382226,150.9,150.84,5.76052226]
[1751293877101,3.59382226,150.92,150.84,5.76052226]
[1751293877295,7.90168233,150.94,150.86,3.59382226]
[1751293877600,7.90168233,150.96,150.88,3.59382226]
[1751293877801,3.59382226,150.94,150.87,36.14]
[1751293878103,6.6241,150.93,150.87,36.14]
[1751293878501,6.6241,150.93,150.9,6.6248]
[1751293878701,3.59382226,150.94,150.9,6.6248]
[1751293879096,6.6242,150.93,150.9,6.6248]
[1751293879497,6.6242,150.93,150.87,36.14]
[1751293880303,6.6242,150.93,150.91,6.6247]
[1751293881605,6.6244,150.92,150.9,6.625]
[1751293882510,6.6241,150.93,150.9,6.625]
[1751293882696,10.21792226,150.93,150.9,6.625]
[1751293883311,7.90168233,150.96,150.88,3.59382226]
[1751293883605,3.59382226,150.96,150.88,3.59382226]
[1751293883797,3.59382226,150.96,150.93,6.6237]
[1751293884208,6.6217,150.98,150.95,6.6227]
[1751293884409,4.30786007,150.99,150.92,3.59382226]
[1751293884706,3.59382226,150.99,150.92,3.59382226]
[1751293884906,6.6222,150.97,150.92,3.59382226]
[1751293885299,6.6219,150.98,150.95,6.6227]
[1751293885500,3.59382226,150.99,150.92,3.59382226]
[1751293886308,3.59382226,150.99,150.94,6.6234]
[1751293886509,3.59382226,150.99,150.91,36.0]
[1751293886810,6.622,150.98,150.96,6.6226]
[1751293887108,3.59382226,150.99,150.92,3.59382226]
[1751293887304,10.21532226,150.99,150.96,6.6222]
[1751293887511,10.21532226,150.99,150.92,3.59382226]
[1751293888609,10.92886007,151.0,150.94,3.59382226]
[1751293888812,3.59382226,151.01,150.96,3.59382226]
[1751293888813,4.30786007,151.01,150.96,3.59382226]
[1751293889012,4.30786007,151.02,150.97,36.0]
[1751293889309,9.73743384,151.03,150.98,3.59382226]
[1751293889310,4.30786007,151.03,150.98,3.59382226]
[1751293889604,8.20838774,151.06,150.98,3.59382226]
[1751293889605,10.92676007,151.05,150.98,3.59382226]
[1751293889802,10.92676007,151.05,151.02,6.6199]
[1751293890202,6.6189,151.05,151.02,6.6199]
[1751293891405,6.6191,151.04,151.02,6.6199]
[1751293891605,6.6191,151.04,151.01,6.6202]
[1751293891801,6.6191,151.04,150.98,10.21792226]
[1751293892211,6.6188,151.05,151.02,6.6199]
[1751293892409,3.59382226,151.07,151.01,35.98]
[1751293892815,6.6185,151.06,151.03,6.6194]
[1751293893315,7.90921314,151.08,151.01,35.98]
[1751293893515,3.59382226,151.08,151.01,35.98]
[1751293893714,10.21142226,151.08,151.05,6.6184]
[1751293893915,14.52681314,151.08,151.05,6.6184]
[1751293894315,10.21142226,151.08,151.05,6.6184]
[1751293894712,6.6178,151.07,151.05,6.6184]
[1751293895220,3.59382226,151.08,151.01,35.98]
[1751293895416,6.6182,151.06,151.01,35.98]
[1751293895619,6.6182,151.06,151.04,6.619]
[1751293895919,6.6186,151.06,151.01,35.98]
[1751293896214,3.59382226,151.06,151.01,35.98]
[1751293897422,6.6188,151.05,151.02,6.6197]
[1751293898022,10.21222226,151.06,151.03,6.6195]
[1751293899517,6.6187,151.05,151.02,6.6198]
[1751293899922,10.21222226,151.06,151.01,35.98]
[1751293900220,10.21222226,151.06,151.03,6.6192]
[1751293900416,3.59382226,151.06,151.03,6.6192]
[1751293901126,3.59382226,151.1,151.03,3.59382226]
[1751293901528,10.21062226,151.1,151.03,3.59382226]
[1751293902124,6.6168,151.1,151.01,35.98]
[1751293902323,10.21062226,151.1,151.03,3.59382226]
[1751293903228,10.21062226,151.1,151.06,6.618]
[1751293903626,6.6171,151.09,151.06,6.618]
[1751293903829,3.59382226,151.1,151.06,6.618]
[1751293904122,3.59382226,151.08,151.05,35.96]
[1751293904330,6.6182,151.06,151.05,35.96]
[1751293904922,6.6191,151.04,151.02,6.6199]
[1751293905130,3.59382226,151.06,151.02,35.96]
[1751293905531,3.59382226,151.06,151.02,42.5799]
[1751293905825,6.6187,151.05,151.02,35.96]
[1751293906431,10.21232226,151.06,151.02,35.96]
[1751293906929,6.6185,151.06,151.04,6.6188]
[1751293907330,6.6185,151.06,151.02,35.96]
[1751293907527,6.6185,151.06,151.03,6.6193]
[1751293907732,6.6187,151.05,151.03,6.6193]
[1751293908135,6.6185,151.06,151.03,6.6193]
[1751293908533,3.59382226,151.08,151.03,6.6193]
[1751293908837,6.6188,151.05,151.03,6.6193]
[1751293909138,3.59382226,151.06,151.03,6.6193]
[1751293909336,3.59382226,151.06,151.02,35.96]
[1751293909538,10.21222226,151.06,151.02,35.96]
[1751293910132,10.21222226,151.06,151.03,6.6191]
[1751293910338,10.21222226,151.06,151.02,35.96]
[1751293910839,10.21222226,151.06,151.03,6.6191]
[1751293910840,6.6187,151.05,151.03,6.6191]
[1751293912441,10.21222226,151.06,151.04,6.619]
[1751293912642,6.6184,151.06,151.04,6.619]
[1751293912940,6.6184,151.06,151.02,35.96]
[1751293913244,3.59382226,151.08,151.02,35.96]
[1751293913431,3.59382226,151.04,150.99,35.8]
[1751293913638,10.21392226,151.02,150.99,6.621]
[1751293914032,10.21392226,151.02,150.98,35.8]
[1751293914033,3.59382226,151.02,150.98,35.8]
[1751293914438,3.59382226,151.02,150.98,42.4215]
[1751293914933,6.6193,151.04,150.98,35.8]
[1751293915133,3.59382226,151.05,150.98,35.8]
[1751293915841,11.06092207,151.07,150.98,35.8]
[1751293916045,3.59382226,151.03,150.98,35.8]
[1751293916447,10.21352226,151.03,151.0,6.6206]
[1751293916837,8.85709325,151.07,151.02,3.59382226]
[1751293917044,4.44331538,151.13,151.05,3.59382226]
[1751293917350,2.2775,151.19,151.12,3.59382226]
[1751293917545,2.2775,151.19,151.13,35.82]
[1751293918047,2.2775,151.19,151.15,6.6142]
[1751293918244,2.2775,151.19,151.13,35.82]
[1751293918443,2.2775,151.19,151.17,6.6131]
[1751293918639,3.59382226,151.22,151.13,35.82]
[1751293918843,35.82,151.23,151.13,41.63762226]
[1751293919042,39.41382226,151.23,151.15,3.59382226]
[1751293919652,6.6116,151.21,151.18,6.6129]
[1751293920052,35.82,151.23,151.14,5.93850278]
[1751293920242,35.82,151.23,151.14,8.14080278]
[1751293920750,35.82,151.23,151.14,2.2023]
[1751293921252,6.611,151.23,151.15,5.93850278]
[1751293921451,5.93850278,151.24,151.15,5.93850278]
[1751293922246,6.6116,151.21,151.18,6.6127]
[1751293922547,4.6216,151.25,151.17,41.73850278]
[1751293922850,2.3323,151.25,151.17,41.73850278]
[1751293923150,8.12500278,151.27,151.17,41.73850278]
[1751293924153,8.12500278,151.27,151.17,35.8]
[1751293924346,8.12500278,151.27,151.17,41.73850278]
[1751293924847,6.6108,151.23,151.17,41.73850278]
[1751293925647,6.6105,151.24,151.2,6.612]
[1751293926252,6.6105,151.24,151.21,35.78]
[1751293927656,6.6109,151.23,151.21,35.78]
[1751293930758,9.02748385,151.28,151.21,35.78]
[1751293931058,4.49719079,151.34,151.26,5.93850278]
[1751293931258,6.6062,151.34,151.3,6.6076]
[1751293931458,9.02896062,151.38,151.3,35.78]
[1751293931756,6.6052,151.36,151.32,6.6066]
[1751293931962,2.1963,151.37,151.3,35.78]
[1751293932357,6.6051,151.36,151.3,35.78]
[1751293932556,2.1963,151.37,151.3,35.78]
[1751293932757,8.13480278,151.37,151.3,35.78]
[1751293933062,6.6064,151.33,151.3,35.78]
[1751293933263,5.93850278,151.35,151.3,35.78]
[1751293934265,5.93850278,151.36,151.3,35.76]
[1751293934460,6.6058,151.35,151.3,42.3675]
[1751293934762,2.1963,151.37,151.3,35.76]
[1751293935157,9.02896062,151.38,151.31,35.76]
[1751293935458,127.78476666,151.39,151.31,35.76]
[1751293935858,10.41030862,151.38,151.31,35.76]
[1751293936057,14.93915409,151.38,151.31,35.76]
[1751293936961,5.93850278,151.37,151.31,35.76]
[1751293938059,5.93850278,151.37,151.28,8.27550278]
[1751293938458,5.93850278,151.35,151.28,2.337]
[1751293938658,5.93850278,151.35,151.28,35.76]
[1751293938863,5.93850278,151.33,151.28,35.76]
[1751293939458,2.1463,151.34,151.24,595.3]
[1751293939459,6.6088,151.28,151.24,6.6101]
[1751293939765,5.93850278,151.3,151.23,38.0077]
[1751293939964,5.93850278,151.31,151.23,38.0077]
[1751293940264,5.93850278,151.32,151.23,38.0077]
[1751293940658,5.93850278,151.32,151.24,5.93850278]
[1751293941058,17.08545409,151.34,151.24,5.93850278]
[1751293941257,6.6065,151.33,151.3,6.6076]
[1751293941762,6.6065,151.33,151.29,42.228]